fUSD/lending_fUSD_20250617
["ID","MTS","AMOUNT","RATE_DAILY","PERIOD"]
[366347234,1750200658226,-151.0,0.00016594,2]
[366347235,1750200658236,-151.0,0.00016594,2]
[366347236,1750200658247,-151.0,0.00016594,2]
[366347237,1750200658258,-291.040903,0.00016594,2]
[366347238,1750200658267,-500.0,0.00016595,2]
[366347239,1750200658277,-6324.6182292,0.00016595,2]
[366347240,1750200658287,-48453.2042835,0.00016595,2]
[366347241,1750200658298,-118146.6096978,0.00016595,2]
[366347242,1750200658307,-155.79886,0.00016595,2]
[366347243,1750200658317,-155.79886,0.00016595,2]
[366347244,1750200658327,-151.0,0.00016595,2]
[366347245,1750200658337,-11637.9806337,0.00016595,2]
[366347246,1750200658347,-178.169629,0.00016595,2]
[366347247,1750200658357,-178.169629,0.00016595,2]
[366347248,1750200658367,-151.0,0.00016595,2]
[366347249,1750200658377,-151.0,0.00016595,2]
[366347250,1750200658389,-151.0,0.00016595,2]
[366347251,1750200658399,-5565.415736,0.00016595,2]
[366347252,1750200658413,-5565.415736,0.00016595,2]
[366347253,1750200658423,-1507.618432,0.00016595,2]
[366347254,1750200658433,-1507.618432,0.00016595,2]
[366347255,1750200658444,-490.126626,0.00016595,2]
[366347256,1750200658454,-490.126626,0.00016595,2]
[366347257,1750200658464,-517.63,0.000166,2]
[366347258,1750200658474,-3746.043182,0.000166,2]
[366347259,1750200658484,-500.0,0.00016601,2]
[366347260,1750200658494,-500.0,0.00016601,2]
[366347261,1750200658504,-500.0,0.00016601,2]
[366347262,1750200658514,-500.0,0.00016601,2]
[366347263,1750200658524,-151.0,0.00016601,2]
[366347264,1750200658533,-151.0,0.00016601,2]
[366347265,1750200658542,-151.0,0.00016601,2]
[366347266,1750200658552,-151.0,0.00016601,2]
[366347267,1750200658561,-1404.534588,0.00016601,2]
[366347268,1750200658573,-1404.534588,0.00016601,2]
[366347269,1750200658583,-500.0,0.00016601,2]
[366347270,1750200658593,-500.0,0.00016601,2]
[366347271,1750200658602,-500.0,0.00016601,2]
[366347272,1750200658612,-500.0,0.00016601,2]
[366347273,1750200658622,-9262.55,0.00016601,2]
[366347274,1750200658632,-9262.55,0.00016601,2]
[366347275,1750200658641,-9262.55,0.00016601,2]
[366347276,1750200658651,-9262.55,0.00016601,2]
[366347277,1750200658662,-300.0,0.00016601,2]
[366347278,1750200658671,-300.0,0.00016601,2]
[366347279,1750200658681,-300.0,0.00016601,2]
[366347280,1750200658690,-300.0,0.00016601,2]
[366347281,1750200658700,-13036.85612104,0.00016602,2]
[366347282,1750200658710,-490.0,0.00016602,2]
[366347283,1750200658720,-490.0,0.00016602,2]
[366347284,1750200658729,-490.0,0.00016602,2]
[366347285,1750200658739,-490.0,0.00016602,2]
[366347286,1750200658749,-490.0,0.00016602,2]
[366347287,1750200658761,-490.0,0.00016602,2]
[366347288,1750200658772,-490.0,0.00016602,2]
[366347289,1750200658783,-462.39111902,0.00016602,2]
[366347290,1750200658796,-490.0,0.00016602,2]
[366347291,1750200658810,-490.0,0.00016602,2]
[366347292,1750200658821,-598.66332018,0.00016602,2]
[366347293,1750200658832,-499.07635651,0.00016602,2]
[366347294,1750200658843,-703.95,0.00016602,2]
[366347295,1750200658854,-490.0,0.00016602,2]
[366347296,1750200658865,-2469.9885,0.00016602,2]
[366347297,1750200658877,-490.0,0.00016602,2]
[366347298,1750200658888,-295.72432149,0.00016602,2]
[366347299,1750200658898,-490.0,0.00016602,2]
[366347300,1750200658909,-590.28,0.00016602,2]
[366347301,1750200658921,-430.0,0.00016602,2]
[366347302,1750200658931,-490.0,0.00016602,2]
[366347303,1750200658942,-490.0,0.00016602,2]
[366347304,1750200658952,-586.56,0.00016602,2]
[366347305,1750200658963,-490.0,0.00016602,2]
[366347306,1750200658974,-490.0,0.00016602,2]
[366347307,1750200658984,-2190.002336,0.00016602,2]
[366347308,1750200658995,-490.0,0.00016602,2]
[366347309,1750200659005,-490.0,0.00016602,2]
[366347310,1750200659015,-490.0,0.00016602,2]
[366347311,1750200659026,-386.73883005,0.00016602,2]
[366347312,1750200659036,-490.0,0.00016602,2]
[366347313,1750200659046,-490.0,0.00016602,2]
[366347314,1750200659057,-490.0,0.00016602,2]
[366347315,1750200659069,-561.79,0.00016602,2]
[366347316,1750200659081,-490.0,0.00016602,2]
[366347317,1750200659091,-490.0,0.00016602,2]
[366347318,1750200659102,-490.0,0.00016602,2]
[366347319,1750200659113,-490.0,0.00016602,2]
[366347320,1750200659125,-490.0,0.00016602,2]
[366347321,1750200659136,-220.16225236,0.00016602,2]
[366347322,1750200659147,-490.0,0.00016602,2]
[366347323,1750200659158,-599.69,0.00016602,2]
[366347324,1750200659169,-490.0,0.00016602,2]
[366347325,1750200659179,-490.0,0.00016602,2]
[366347326,1750200659190,-643.71,0.00016602,2]
[366347327,1750200659202,-228.39828888,0.00016602,2]
[366347328,1750200659213,-490.0,0.00016602,2]
[366347329,1750200659223,-487.12983885,0.00016602,2]
[366347330,1750200659233,-490.0,0.00016602,2]
[366347331,1750200659244,-430.0,0.00016602,2]
[366347332,1750200659255,-490.0,0.00016602,2]
[366347333,1750200659266,-929.15,0.00016602,2]
[366347334,1750200659277,-490.0,0.00016602,2]
[366347335,1750200659287,-1000.0,0.00016602,2]
[366347336,1750200659298,-490.0,0.00016602,2]
[366347337,1750200659309,-490.0,0.00016602,2]
[366347338,1750200659319,-490.0,0.00016602,2]
[366347339,1750200659330,-490.0,0.00016602,2]
[366347340,1750200659340,-490.0,0.00016602,2]
[366347341,1750200659350,-490.0,0.00016602,2]
[366347342,1750200659361,-490.0,0.00016602,2]
[366347343,1750200659372,-490.0,0.00016602,2]
[366347344,1750200659382,-490.0,0.00016602,2]
[366347345,1750200659392,-490.0,0.00016602,2]
[366347346,1750200659403,-582.20403457,0.00016602,2]
[366347347,1750200659415,-490.0,0.00016602,2]
[366347348,1750200659426,-490.0,0.00016602,2]
[366347349,1750200659436,-490.0,0.00016602,2]
[366347350,1750200659447,-353.26,0.00016602,2]
[366347351,1750200659457,-490.0,0.00016602,2]
[366347352,1750200659467,-773.75,0.00016602,2]
[366347353,1750200659478,-490.0,0.00016602,2]
[366347354,1750200659488,-490.0,0.00016602,2]
[366347355,1750200659499,-490.0,0.00016602,2]
[366347356,1750200659509,-490.0,0.00016602,2]
[366347357,1750200659520,-490.0,0.00016602,2]
[366347358,1750200659530,-490.0,0.00016602,2]
[366347359,1750200659542,-678.64,0.00016602,2]
[366347360,1750200659552,-490.0,0.00016602,2]
[366347361,1750200659563,-490.0,0.00016602,2]
[366347362,1750200659574,-653.31,0.00016602,2]
[366347363,1750200659584,-490.0,0.00016602,2]
[366347364,1750200659595,-490.0,0.00016602,2]
[366347365,1750200659605,-490.0,0.00016602,2]
[366347366,1750200659615,-450.0,0.00016602,2]
[366347367,1750200659625,-460.0,0.00016602,2]
[366347368,1750200659635,-490.0,0.00016602,2]
[366347369,1750200659645,-490.0,0.00016602,2]
[366347370,1750200659655,-490.0,0.00016602,2]
[366347371,1750200659666,-490.0,0.00016602,2]
[366347372,1750200659676,-490.0,0.00016602,2]
[366347373,1750200659686,-490.0,0.00016602,2]
[366347374,1750200659697,-490.0,0.00016602,2]
[366347375,1750200659708,-490.0,0.00016602,2]
[366347376,1750200659719,-490.0,0.00016602,2]
[366347377,1750200659729,-490.0,0.00016602,2]
[366347378,1750200659740,-490.0,0.00016602,2]
[366347379,1750200659751,-490.0,0.00016602,2]
[366347380,1750200659762,-490.0,0.00016602,2]
[366347381,1750200659772,-263.33097767,0.00016602,2]
[366347382,1750200659783,-490.0,0.00016602,2]
[366347383,1750200659797,-714.31,0.00016602,2]
[366347384,1750200659811,-515.21,0.00016602,2]
[366347385,1750200659822,-490.0,0.00016602,2]
[366347386,1750200659833,-490.0,0.00016602,2]
[366347387,1750200659843,-460.0,0.00016602,2]
[366347388,1750200659854,-611.64,0.00016602,2]
[366347389,1750200659864,-583.87,0.00016602,2]
[366347390,1750200659875,-460.0,0.00016602,2]
[366347391,1750200659886,-490.0,0.00016602,2]
[366347392,1750200659896,-522.37,0.00016602,2]
[366347393,1750200659906,-172.98153716,0.00016602,2]
[366347394,1750200659917,-490.0,0.00016602,2]
[366347395,1750200659927,-490.0,0.00016602,2]
[366347396,1750200659937,-490.0,0.00016602,2]
[366347397,1750200659947,-490.0,0.00016602,2]
[366347398,1750200659958,-490.0,0.00016602,2]
[366347399,1750200659969,-490.0,0.00016602,2]
[366347400,1750200659979,-670.81,0.00016602,2]
[366347401,1750200659989,-490.0,0.00016602,2]
[366347402,1750200660000,-490.0,0.00016602,2]
[366347403,1750200660011,-623.78,0.00016602,2]
[366347404,1750200660022,-160.56,0.00016602,2]
[366347405,1750200660033,-460.0,0.00016602,2]
[366347406,1750200660044,-490.0,0.00016602,2]
[366347407,1750200660055,-490.0,0.00016602,2]
[366347408,1750200660066,-490.0,0.00016602,2]
[366347409,1750200660077,-558.19,0.00016602,2]
[366347410,1750200660088,-573.92,0.00016602,2]
[366347411,1750200660099,-544.2,0.00016602,2]
[366347412,1750200660109,-490.0,0.00016602,2]
[366347413,1750200660119,-490.0,0.00016602,2]
[366347414,1750200660130,-490.0,0.00016602,2]
[366347415,1750200660141,-490.0,0.00016602,2]
[366347416,1750200660152,-490.0,0.00016602,2]
[366347417,1750200660163,-490.0,0.00016602,2]
[366347418,1750200660174,-490.0,0.00016602,2]
[366347419,1750200660185,-490.0,0.00016602,2]
[366347420,1750200660195,-490.0,0.00016602,2]
[366347421,1750200660205,-466.51455062,0.00016602,2]
[366347422,1750200660215,-490.0,0.00016602,2]
[366347423,1750200660226,-490.0,0.00016602,2]
[366347424,1750200660236,-512.84108672,0.00016602,2]
[366347425,1750200660246,-1513.78,0.00016602,2]
[366347426,1750200660256,-718.11,0.00016602,2]
[366347427,1750200660267,-490.0,0.00016602,2]
[366347428,1750200660277,-788.5,0.00016602,2]
[366347429,1750200660287,-403.47920711,0.00016602,2]
[366347430,1750200660298,-490.0,0.00016602,2]
[366347431,1750200660308,-490.0,0.00016602,2]
[366347432,1750200660319,-490.0,0.00016602,2]
[366347433,1750200660330,-490.0,0.00016602,2]
[366347434,1750200660340,-490.0,0.00016602,2]
[366347435,1750200660350,-460.0,0.00016602,2]
[366347436,1750200660360,-460.0,0.00016602,2]
[366347437,1750200660371,-490.0,0.00016602,2]
[366347438,1750200660381,-836.96,0.00016602,2]
[366347439,1750200660392,-636.27,0.00016602,2]
[366347440,1750200660403,-490.0,0.00016602,2]
[366347441,1750200660416,-490.0,0.00016602,2]
[366347442,1750200660427,-837.26,0.00016602,2]
[366347443,1750200660437,-151.0,0.00016602,2]
[366347444,1750200660447,-151.0,0.00016602,2]
[366347445,1750200660458,-151.0,0.00016602,2]
[366347446,1750200660468,-296.981184,0.00016602,2]
[366347447,1750200660479,-490.0,0.00016602,2]
[366347448,1750200660489,-460.0,0.00016602,2]
[366347449,1750200660498,-490.0,0.00016602,2]
[366347450,1750200660509,-490.0,0.00016602,2]
[366347451,1750200660519,-581.57,0.00016602,2]
[366347452,1750200660530,-795.12,0.00016602,2]
[366347453,1750200660540,-490.0,0.00016602,2]
[366347454,1750200660551,-490.0,0.00016602,2]
[366347455,1750200660564,-490.0,0.00016602,2]
[366347456,1750200660574,-490.0,0.00016602,2]
[366347457,1750200660584,-490.0,0.00016602,2]
[366347458,1750200660595,-490.0,0.00016602,2]
[366347459,1750200660605,-490.0,0.00016602,2]
[366347460,1750200660615,-490.0,0.00016602,2]
[366347461,1750200660625,-490.0,0.00016602,2]
[366347462,1750200660635,-490.0,0.00016602,2]
[366347463,1750200660646,-490.0,0.00016602,2]
[366347464,1750200660656,-490.0,0.00016602,2]
[366347465,1750200660666,-490.0,0.00016602,2]
[366347466,1750200660676,-490.0,0.00016602,2]
[366347467,1750200660686,-490.0,0.00016602,2]
[366347468,1750200660696,-710.08,0.00016602,2]
[366347469,1750200660706,-490.0,0.00016602,2]
[366347470,1750200660716,-776.98,0.00016602,2]
[366347471,1750200660727,-490.0,0.00016602,2]
[366347472,1750200660736,-642.6,0.00016602,2]
[366347473,1750200660746,-490.0,0.00016602,2]
[366347474,1750200660756,-367.61483612,0.00016602,2]
[366347475,1750200660767,-974.94,0.00016602,2]
[366347476,1750200660778,-490.0,0.00016602,2]
[366347477,1750200660790,-490.0,0.00016602,2]
[366347478,1750200660800,-820.63,0.00016602,2]
[366347479,1750200660811,-490.0,0.00016602,2]
[366347480,1750200660821,-490.0,0.00016602,2]
[366347481,1750200660831,-490.0,0.00016602,2]
[366347482,1750200660843,-490.0,0.00016602,2]
[366347483,1750200660853,-1653.43,0.00016602,2]
[366347484,1750200660865,-490.0,0.00016602,2]
[366347485,1750200660875,-490.0,0.00016602,2]
[366347486,1750200660886,-569.27,0.00016602,2]
[366347487,1750200660896,-310.93360752,0.00016602,2]
[366347488,1750200660907,-1240.05,0.00016602,2]
[366347489,1750200660917,-490.0,0.00016602,2]
[366347490,1750200660927,-594.17,0.00016602,2]
[366347491,1750200660938,-151.0,0.00016602,2]
[366347492,1750200660949,-574.2,0.00016602,2]
[366347493,1750200660959,-151.0,0.00016602,2]
[366347494,1750200660969,-151.0,0.00016602,2]
[366347495,1750200660980,-490.0,0.00016602,2]
[366347496,1750200660991,-490.0,0.00016602,2]
[366347497,1750200661001,-490.0,0.00016602,2]
[366347498,1750200661012,-1035.77,0.00016602,2]
[366347499,1750200661022,-490.0,0.00016602,2]
[366347500,1750200661033,-161.32,0.00016602,2]
[366347501,1750200661044,-490.0,0.00016602,2]
[366347502,1750200661054,-490.0,0.00016602,2]
[366347503,1750200661064,-490.0,0.00016602,2]
[366347504,1750200661075,-634.4,0.00016602,2]
[366347505,1750200661085,-153.717704,0.00016602,2]
[366347506,1750200661096,-1317.14,0.00016602,2]
[366347507,1750200661107,-709.67,0.00016602,2]
[366347508,1750200661398,-568.37,0.00016602,2]
[366347509,1750200661462,-490.0,0.00016602,2]
[366347510,1750200661472,-1664.13,0.00016602,2]
[366347511,1750200661481,-490.0,0.00016602,2]
[366347512,1750200661491,-490.0,0.00016602,2]
[366347513,1750200661501,-490.0,0.00016602,2]
[366347514,1750200661512,-490.0,0.00016602,2]
[366347515,1750200661522,-490.0,0.00016602,2]
[366347516,1750200661532,-490.0,0.00016602,2]
[366347517,1750200661542,-1532.47,0.00016602,2]
[366347518,1750200661553,-490.0,0.00016602,2]
[366347519,1750200661562,-490.0,0.00016602,2]
[366347520,1750200661572,-490.0,0.00016602,2]
[366347521,1750200661582,-490.0,0.00016602,2]
[366347522,1750200661591,-490.0,0.00016602,2]
[366347523,1750200661601,-490.0,0.00016602,2]
[366347524,1750200661611,-500.0,0.00016602,2]
[366347525,1750200661621,-490.0,0.00016602,2]
[366347526,1750200661631,-490.0,0.00016602,2]
[366347527,1750200661641,-490.0,0.00016602,2]
[366347528,1750200661650,-150.0,0.00016602,2]
[366347529,1750200661660,-500.0,0.00016602,2]
[366347530,1750200661670,-500.0,0.00016602,2]
[366347531,1750200661680,-490.0,0.00016602,2]
[366347532,1750200661689,-490.0,0.00016602,2]
[366347533,1750200661699,-490.0,0.00016602,2]
[366347534,1750200661709,-500.0,0.00016602,2]
[366347535,1750200661719,-779.39,0.00016602,2]
[366347536,1750200661728,-500.0,0.00016602,2]
[366347537,1750200661738,-186.252379,0.00016602,2]
[366347538,1750200661748,-490.0,0.00016602,2]
[366347539,1750200661758,-1479.82,0.00016602,2]
[366347540,1750200661768,-500.0,0.00016602,2]
[366347541,1750200661778,-490.0,0.00016602,2]
[366347542,1750200661790,-615.2,0.00016602,2]
[366347543,1750200661800,-500.0,0.00016602,2]
[366347544,1750200661810,-150.0,0.00016602,2]
[366347545,1750200661820,-1545.41,0.00016602,2]
[366347546,1750200661830,-150.0,0.00016602,2]
[366347547,1750200661841,-490.0,0.00016602,2]
[366347548,1750200661851,-490.0,0.00016602,2]
[366347549,1750200661860,-500.0,0.00016602,2]
[366347550,1750200661871,-151.0,0.00016602,2]
[366347551,1750200661881,-151.0,0.00016602,2]
[366347552,1750200661891,-490.0,0.00016602,2]
[366347553,1750200661901,-1431.76,0.00016602,2]
[366347554,1750200661911,-151.0,0.00016602,2]
[366347555,1750200661921,-151.0,0.00016602,2]
[366347556,1750200661930,-151.0,0.00016602,2]
[366347557,1750200661941,-1264.03,0.00016602,2]
[366347558,1750200661951,-1644.26,0.00016602,2]
[366347559,1750200661961,-151.0,0.00016602,2]
[366347560,1750200661971,-1385.37,0.00016602,2]
[366347561,1750200661981,-1064.1,0.00016602,2]
[366347562,1750200661991,-151.0,0.00016602,2]
[366347563,1750200662001,-151.0,0.00016602,2]
[366347564,1750200662011,-151.0,0.00016602,2]
[366347565,1750200662021,-230.819786,0.00016602,2]
[366347566,1750200662031,-490.0,0.00016602,2]
[366347567,1750200662040,-490.0,0.00016602,2]
[366347568,1750200662050,-315.909236,0.00016602,2]
[366347569,1750200662060,-490.0,0.00016602,2]
[366347570,1750200662070,-315.909236,0.00016602,2]
[366347571,1750200662080,-490.0,0.00016602,2]
[366347572,1750200662090,-315.909236,0.00016602,2]
[366347573,1750200662100,-315.909236,0.00016602,2]
[366347574,1750200662110,-315.909236,0.00016602,2]
[366347575,1750200662120,-2207.56,0.00016602,2]
[366347576,1750200662130,-315.909236,0.00016602,2]
[366347577,1750200662140,-490.0,0.00016602,2]
[366347578,1750200662150,-150.0,0.00016602,2]
[366347579,1750200662160,-490.0,0.00016602,2]
[366347580,1750200662169,-315.909236,0.00016602,2]
[366347581,1750200662179,-490.0,0.00016602,2]
[366347582,1750200662188,-315.909236,0.00016602,2]
[366347583,1750200662198,-315.909236,0.00016602,2]
[366347584,1750200662208,-150.0,0.00016602,2]
[366347585,1750200662218,-315.909236,0.00016602,2]
[366347586,1750200662227,-315.909236,0.00016602,2]
[366347587,1750200662238,-1422.11,0.00016602,2]
[366347588,1750200662249,-315.909236,0.00016602,2]
[366347589,1750200662258,-490.0,0.00016602,2]
[366347590,1750200662268,-830.08,0.00016602,2]
[366347591,1750200662278,-490.0,0.00016602,2]
[366347592,1750200662294,-565.78,0.00016602,2]
[366347593,1750200662304,-490.0,0.00016602,2]
[366347594,1750200662315,-490.0,0.00016602,2]
[366347595,1750200662325,-490.0,0.00016602,2]
[366347596,1750200662335,-490.0,0.00016602,2]
[366347597,1750200662344,-921.86,0.00016602,2]
[366347598,1750200662354,-490.0,0.00016602,2]
[366347599,1750200662364,-490.0,0.00016602,2]
[366347600,1750200662374,-816.5,0.00016602,2]
[366347601,1750200662384,-405.7746282,0.00016602,2]
[366347602,1750200662394,-1986.03,0.00016602,2]
[366347603,1750200662403,-901.41,0.00016602,2]
[366347604,1750200662413,-490.0,0.00016602,2]
[366347605,1750200662424,-490.0,0.00016602,2]
[366347606,1750200662433,-1345.99,0.00016602,2]
[366347607,1750200662442,-1694.17,0.00016602,2]
[366347608,1750200662452,-490.0,0.00016602,2]
[366347609,1750200662462,-576.94,0.00016602,2]
[366347610,1750200662472,-847.97,0.00016602,2]
[366347611,1750200662481,-508.68,0.00016602,2]
[366347612,1750200662491,-490.0,0.00016602,2]
[366347613,1750200662500,-1003.13,0.00016602,2]
[366347614,1750200662511,-1288.16,0.00016602,2]
[366347615,1750200662520,-151.0,0.00016602,2]
[366347616,1750200662530,-151.0,0.00016602,2]
[366347617,1750200662540,-490.0,0.00016602,2]
[366347618,1750200662550,-528.47,0.00016602,2]
[366347619,1750200662560,-758.44,0.00016602,2]
[366347620,1750200662570,-490.0,0.00016602,2]
[366347621,1750200662580,-1078.63,0.00016602,2]
[366347622,1750200662590,-151.0,0.00016602,2]
[366347623,1750200662599,-151.0,0.00016602,2]
[366347624,1750200662609,-151.0,0.00016602,2]
[366347625,1750200662619,-151.0,0.00016602,2]
[366347626,1750200662629,-1054.26,0.00016602,2]
[366347627,1750200662638,-218.896256,0.00016602,2]
[366347628,1750200662648,-1106.98,0.00016602,2]
[366347629,1750200662657,-490.0,0.00016602,2]
[366347630,1750200662667,-712.37,0.00016602,2]
[366347631,1750200662677,-981.8,0.00016602,2]
[366347632,1750200662687,-490.0,0.00016602,2]
[366347633,1750200662696,-783.08,0.00016602,2]
[366347634,1750200662706,-490.0,0.00016602,2]
[366347635,1750200662716,-490.0,0.00016602,2]
[366347636,1750200662726,-929.02,0.00016602,2]
[366347637,1750200662735,-860.2,0.00016602,2]
[366347638,1750200662745,-626.41,0.00016602,2]
[366347639,1750200662755,-1116.06,0.00016602,2]
[366347640,1750200662765,-490.0,0.00016602,2]
[366347641,1750200662775,-490.0,0.00016602,2]
[366347642,1750200662784,-795.57,0.00016602,2]
[366347643,1750200662797,-490.0,0.00016602,2]
[366347644,1750200662807,-490.0,0.00016602,2]
[366347645,1750200662821,-490.0,0.00016602,2]
[366347646,1750200662831,-490.0,0.00016602,2]
[366347647,1750200662842,-972.36,0.00016602,2]
[366347648,1750200662851,-490.0,0.00016602,2]
[366347649,1750200662861,-1099.42,0.00016602,2]
[366347650,1750200662872,-490.0,0.00016602,2]
[366347651,1750200662882,-1063.19,0.00016602,2]
[366347652,1750200662892,-822.46,0.00016602,2]
[366347653,1750200662903,-490.0,0.00016602,2]
[366347654,1750200662912,-738.03,0.00016602,2]
[366347655,1750200662923,-490.0,0.00016602,2]
[366347656,1750200662932,-873.76,0.00016602,2]
[366347657,1750200662942,-151.0,0.00016602,2]
[366347658,1750200662952,-151.0,0.00016602,2]
[366347659,1750200662962,-1526.12,0.00016602,2]
[366347660,1750200662971,-151.0,0.00016602,2]
[366347661,1750200662981,-151.0,0.00016602,2]
[366347662,1750200662991,-662.47,0.00016602,2]
[366347663,1750200663001,-151.0,0.00016602,2]
[366347664,1750200663011,-151.0,0.00016602,2]
[366347665,1750200663021,-617.4,0.00016602,2]
[366347666,1750200663030,-151.0,0.00016602,2]
[366347667,1750200663040,-490.0,0.00016602,2]
[366347668,1750200663051,-273.559507,0.00016602,2]
[366347669,1750200663062,-1033.95,0.00016602,2]
[366347670,1750200663072,-662.82,0.00016602,2]
[366347671,1750200663082,-1050.55,0.00016602,2]
[366347672,1750200663093,-1146.91,0.00016602,2]
[366347673,1750200663103,-730.71,0.00016602,2]
[366347674,1750200663114,-490.0,0.00016602,2]
[366347675,1750200663129,-490.0,0.00016602,2]
[366347676,1750200663139,-490.0,0.00016602,2]
[366347677,1750200663149,-809.34,0.00016602,2]
[366347678,1750200663159,-490.0,0.00016602,2]
[366347679,1750200663168,-703.94,0.00016602,2]
[366347680,1750200663179,-1558.54,0.00016602,2]
[366347681,1750200663188,-531.68,0.00016602,2]
[366347682,1750200663198,-1292.22,0.00016602,2]
[366347683,1750200663208,-412.20580546,0.00016602,2]
[366347684,1750200663218,-151.0,0.00016602,2]
[366347685,1750200663227,-945.04,0.00016602,2]
[366347686,1750200663237,-151.0,0.00016602,2]
[366347687,1750200663247,-151.0,0.00016602,2]
[366347688,1750200663257,-490.0,0.00016602,2]
[366347689,1750200663266,-490.0,0.00016602,2]
[366347690,1750200663276,-490.0,0.00016602,2]
[366347691,1750200663286,-490.0,0.00016602,2]
[366347692,1750200663295,-1143.54,0.00016602,2]
[366347693,1750200663306,-509.65,0.00016602,2]
[366347694,1750200663315,-2014.49,0.00016602,2]
[366347695,1750200663325,-605.17,0.00016602,2]
[366347696,1750200663334,-490.0,0.00016602,2]
[366347697,1750200663344,-895.65,0.00016602,2]
[366347698,1750200663354,-959.18,0.00016602,2]
[366347699,1750200663363,-437.25495597,0.00016602,2]
[366347700,1750200663373,-682.88,0.00016602,2]
[366347701,1750200663383,-869.85,0.00016602,2]
[366347702,1750200663393,-490.0,0.00016602,2]
[366347703,1750200663403,-1427.28,0.00016602,2]
[366347704,1750200663414,-490.0,0.00016602,2]
[366347705,1750200663424,-490.0,0.00016602,2]
[366347706,1750200663434,-986.02,0.00016602,2]
[366347707,1750200663444,-1610.42,0.00016602,2]
[366347708,1750200663453,-490.0,0.00016602,2]
[366347709,1750200663463,-490.0,0.00016602,2]
[366347710,1750200663474,-1404.25,0.00016602,2]
[366347711,1750200663484,-490.0,0.00016602,2]
[366347712,1750200663494,-490.0,0.00016602,2]
[366347713,1750200663504,-490.0,0.00016602,2]
[366347714,1750200663516,-1731.11,0.00016602,2]
[366347715,1750200663526,-490.0,0.00016602,2]
[366347716,1750200663536,-490.0,0.00016602,2]
[366347717,1750200663546,-490.0,0.00016602,2]
[366347718,1750200663556,-490.0,0.00016602,2]
[366347719,1750200663566,-830.75,0.00016602,2]
[366347720,1750200663576,-887.29,0.00016602,2]
[366347721,1750200663585,-490.0,0.00016602,2]
[366347722,1750200663595,-490.0,0.00016602,2]
[366347723,1750200663605,-1187.23,0.00016602,2]
[366347724,1750200663615,-490.0,0.00016602,2]
[366347725,1750200663624,-490.0,0.00016602,2]
[366347726,1750200663635,-630.61,0.00016602,2]
[366347727,1750200663645,-477.99245712,0.00016602,2]
[366347728,1750200663655,-633.5,0.00016602,2]
[366347729,1750200663666,-490.0,0.00016602,2]
[366347730,1750200663676,-490.0,0.00016602,2]
[366347731,1750200663686,-460.0,0.00016602,2]
[366347732,1750200663696,-490.0,0.00016602,2]
[366347733,1750200663706,-2842.44,0.00016602,2]